Cogmind - Beta 16 @@@ ROGUE MODE // 2025.11.07 @ 13:33:54 Player: Demo Result: Destroyed by exploding Fusion Modulator Performance ------------- Evolutions (6) 3000 Regions Visited (8) 1600 Robots Destroyed (0) 0 Value Destroyed (0) 0 Prototype IDs (6) 120 Alien Tech Used (0) 0 Bonus (3125) 3125 TOTAL SCORE: 7845 Bonus ------- Pacifist 1825 Entered DSFs 500 Registered with UFD 300 Met Optimus in HQ 500 Cogmind --------- Core Integrity 0/1150 Matter 215/300 Energy 100/100 System Corruption 1% Temperature Cool (48) Movement Core (50) Location -4/Factory Parts ------- > --- POWER (1) -------- (None) > --- PROPULSION (3) --- (None) > --- UTILITY (11) ----- Advanced Weight Redist. System Experimental Terrain Scan Processor Propulsion Shielding Propulsion Shielding > --- WEAPON (4) ------- (None) > --- INVENTORY (5) ---- Angular Momentum Engine Advanced Terrain Scanner Improved Transmission Jammer Propulsion Shielding Propulsion Shielding Peak State ------------ > --- POWER ------------ (None) > --- PROPULSION ------- Flight Unit Flight Unit > --- UTILITY ---------- Advanced Terrain Scanner Experimental Terrain Scan Processor Seismic Detector Propulsion Shielding Propulsion Shielding Propulsion Shielding Propulsion Shielding Propulsion Shielding > --- WEAPON ----------- (None) > --- INVENTORY -------- Experimental Terrain Scan Processor Improved Transmission Jammer Propulsion Shielding Propulsion Shielding Propulsion Shielding [Rating: 22] Favorites ----------- Power None Propulsion Flight Unit Treads Light Treads Flight Unit Flight Unit Utility Propulsion Shielding Device Seismic Detector Processor Experimental Terrain Scan Processor Protection Propulsion Shielding Weapon Hammer Impact Weapon Hammer Build | -11 -10 -10 -10 -9 -6 -5 -5 -4 ------- Run | Yrd Mat Min Sub Scr Fac Fac DSF Fac Slots Evolved 12 | . . . . . 8 2 . 2 Power . | . . . . . . . . . Propulsion 1 | . . . . . 1 . . . Utility 9 | . . . . . 7 2 . . Weapon 2 | . . . . . . . . 2 Parts Attached 17 | 2 2 3 . 1 5 1 . 3 Power . | . . . . . . . . . Engine . | . . . . . . . . . Core . | . . . . . . . . . Reactor . | . . . . . . . . . Propulsion 5 | 2 2 . . 1 . . . . Treads 2 | 2 . . . . . . . . Leg . | . . . . . . . . . Wheel . | . . . . . . . . . Hover . | . . . . . . . . . Flight 3 | . 2 . . 1 . . . . Utility 11 | . . 2 . . 5 1 . 3 Device 3 | . . 1 . . . . . 2 Storage . | . . . . . . . . . Processor 3 | . . 1 . . . 1 . 1 Hackware . | . . . . . . . . . Protection 5 | . . . . . 5 . . . Artifact . | . . . . . . . . . Weapon 1 | . . 1 . . . . . . Energy Gun . | . . . . . . . . . Energy Cannon . | . . . . . . . . . Ballistic Gun . | . . . . . . . . . Ballistic Cannon . | . . . . . . . . . Launcher . | . . . . . . . . . Special Weapon . | . . . . . . . . . Impact Weapon 1 | . . 1 . . . . . . Slashing Weapon . | . . . . . . . . . Piercing Weapon . | . . . . . . . . . Special Melee Weapon . | . . . . . . . . . Unidentified Prototypes . | . . . . . . . . . Parts Lost 6 | . . 1 . . . . 1 4 Power . | . . . . . . . . . Propulsion 3 | . . 1 . . . . . 2 Utility 2 | . . . . . . . . 2 Weapon 1 | . . . . . . . 1 . Highest Loss Streak 2 | . . 1 . . . . 1 2 To Critical Strikes . | . . . . . . . . . Average Backups 1 | . . 1 1 . 2 5 5 4 Power . | . . . . . . . . . Propulsion . | . . 1 1 . . . . . Utility 1 | . . . . . 2 5 5 4 Weapon . | . . . . . . . . . Tool/Special . | . . . . . . . . . Unused Backups 6 | . . . . . . . . 6 Power 1 | . . . . . . . . 1 Propulsion . | . . . . . . . . . Utility 5 | . . . . . . . . 5 Weapon . | . . . . . . . . . Tool/Special . | . . . . . . . . . Average Slot Usage (%) 40 | . 27 39 42 54 46 54 55 35 Treads 3 | . 26 . . . . . . . Flight 15 | . 1 25 14 26 13 11 11 4 Device 7 | . . 6 14 14 6 5 5 5 Processor 1 | . . . . . . 1 5 7 Protection 5 | . . . . . 19 29 29 16 Impact Weapon 6 | . . 7 14 14 6 5 2 . Peak Build Rating 22 | 2 2 5 3 4 10 18 18 22 Average Rating 6 | 1 1 2 3 3 8 14 17 19 On Entrance 6 | . 2 2 3 3 4 10 18 17 Avg Prop Armor Cover (%) 38 | 39 38 . . . . . . . Naked Turns . | . . . . . . . . . Heaviest Build 8 | . . 3 3 3 8 8 8 7 Greatest Support 8 | 3 8 8 4 8 8 8 8 8 Greatest Overweight (x) 1 | . . . . . . . . 1 Average Overweight (x) . | . . . . . . . . . Largest Inventory Capacity 5 | 5 5 5 5 5 5 5 5 5 Average Capacity 5 | 5 5 5 5 5 5 5 5 5 Most Carried 5 | . 1 1 1 1 5 5 5 5 Average Carried 1 | . . 1 1 . 2 4 5 4 Final Capacity 5 | 5 5 5 5 5 5 5 5 5 Final Carried 5 | . 1 1 1 1 5 5 5 5 Class Distribution -------------------- 100% | Mutant Dominant Class ---------------- Mutant | -10/Materials Mutant | -10/Mines Mutant | -10/Subcaves Mutant | -9/Scraptown Mutant | -6/Factory Mutant | -5/Factory Mutant | -5/DSF Mutant | -4/Factory Resources | -11 -10 -10 -10 -9 -6 -5 -5 -4 ----------- Run | Yrd Mat Min Sub Scr Fac Fac DSF Fac Matter Collected 260 | 220 13 27 . . . . . . Remotely . | . . . . . . . . . Salvage Created . | . . . . . . . . . Parts . | . . . . . . . . . Haulers Intercepted . | . . . . . . . . . Recyclers Shooed . | . . . . . . . . . Parts Field Recycled . | . . . . . . . . . Retrieved Matter . | . . . . . . . . . Parts Self-Destructed 3 | . . . 3 . . . . . Prevented . | . . . . . . . . . Parts Restored . | . . . . . . . . . Kills | -11 -10 -10 -10 -9 -6 -5 -5 -4 ------- Run | Yrd Mat Min Sub Scr Fac Fac DSF Fac Combat Hostiles Destroyed . | . . . . . . . . . Classes Destroyed . | . . . . . . . . . Best Kill Streak . | . . . . . . . . . Combat Bots Only . | . . . . . . . . . Max Kills in Single Turn . | . . . . . . . . . Gunslinging . | . . . . . . . . . Exploded . | . . . . . . . . . Melee . | . . . . . . . . . Uniques/NPCs Destroyed . | . . . . . . . . . Combat | -11 -10 -10 -10 -9 -6 -5 -5 -4 -------- Run | Yrd Mat Min Sub Scr Fac Fac DSF Fac Hostile Shots Fired 109 | . . 2 . . 6 . 1 100 Missed 51 | . . . . . 3 . . 48 Hits 58 | . . 2 . . 3 . 1 52 Projectile 58 | . . 2 . . 3 . 1 52 AOE 3 | . . 2 . . . . . 1 Critical Strikes 3 | . . . . . . . . 3 Damage Taken 1539 | . . 57 . . 43 . 68 1371 Core 1249 | . . 19 . . 28 . . 1202 Absorbed by Shields . | . . . . . . . . . Redirected to Shielding 16 | . . . . . . . . 16 Core Remaining (%) 97 | 100 . . . 92 96 . 100 . Volleys Fired . | . . . . . . . . . Largest . | . . . . . . . . . Hottest . | . . . . . . . . . Shots Fired . | . . . . . . . . . Gun . | . . . . . . . . . Cannon . | . . . . . . . . . Launcher . | . . . . . . . . . Special . | . . . . . . . . . Kinetic . | . . . . . . . . . Thermal . | . . . . . . . . . Explosive . | . . . . . . . . . Electromagnetic . | . . . . . . . . . Robot Hit Streak . | . . . . . . . . . Robot Miss Streak . | . . . . . . . . . Penetration Max . | . . . . . . . . . Secondary Targets . | . . . . . . . . . Shots Hit Robots . | . . . . . . . . . Core Hits . | . . . . . . . . . Critical Kills . | . . . . . . . . . Critical Parts Destroyed . | . . . . . . . . . Critical Strikes . | . . . . . . . . . Melee Attacks 8 | . . 4 4 . . . . . Impact 8 | . . 4 4 . . . . . Slashing . | . . . . . . . . . Piercing . | . . . . . . . . . Sneak Attacks . | . . . . . . . . . Combat Hostiles . | . . . . . . . . . Follow-up Attacks . | . . . . . . . . . Damage Inflicted 7 | . . . . . . . . 7 Guns . | . . . . . . . . . Cannons . | . . . . . . . . . Explosions . | . . . . . . . . . Melee . | . . . . . . . . . Ramming 7 | . . . . . . . . 7 Kinetic . | . . . . . . . . . Thermal . | . . . . . . . . . Explosive . | . . . . . . . . . Electromagnetic . | . . . . . . . . . Impact . | . . . . . . . . . Slashing . | . . . . . . . . . Piercing . | . . . . . . . . . Highest Corruption 1 | . . . . . . . . 1 Average Corruption 1 | . . . . . . . . 1 Corruption Purged . | . . . . . . . . . Corruption Blocked . | . . . . . . . . . Overload Shots . | . . . . . . . . . Overflow Damage . | . . . . . . . . . Projectiles . | . . . . . . . . . Explosions . | . . . . . . . . . Melee . | . . . . . . . . . Knockbacks . | . . . . . . . . . Impact . | . . . . . . . . . Kinetic . | . . . . . . . . . Secondary . | . . . . . . . . . Self-Inflicted Damage 3 | . . . . . . . . 3 Shots . | . . . . . . . . . Rammed 1 | . . . . . . . . 1 Targets Rammed 1 | . . . . . . . . 1 Kicked . | . . . . . . . . . Crushed . | . . . . . . . . . Highest Temperature . | . . . . . . . . . Average Temperature . | . . . . . . . . . Received Heat Transfer 186 | . . . . . . . . 186 Siege Activations . | . . . . . . . . . Martial Activations . | . . . . . . . . . Shielding Activations . | . . . . . . . . . Robots Disrupted . | . . . . . . . . . Combat Hostiles . | . . . . . . . . . Robots Corrupted . | . . . . . . . . . Combat Hostiles . | . . . . . . . . . Parts Fried . | . . . . . . . . . Impact Corruptions . | . . . . . . . . . Robots Melted . | . . . . . . . . . Combat Hostiles . | . . . . . . . . . Parts Melted . | . . . . . . . . . Heat Transferred . | . . . . . . . . . Parts Sabotaged . | . . . . . . . . . Parts Stolen . | . . . . . . . . . Parts Stripped . | . . . . . . . . . Power Chain Reactions . | . . . . . . . . . Alert | -11 -10 -10 -10 -9 -6 -5 -5 -4 ------- Run | Yrd Mat Min Sub Scr Fac Fac DSF Fac Maximum Alert Level . | . . . . . . . . . Low Security (%) 100 | 100 100 100 . . 100 100 100 100 Level 1 . | . . . . . . . . . Level 2 . | . . . . . . . . . Level 3 . | . . . . . . . . . Level 4 . | . . . . . . . . . Level 5 . | . . . . . . . . . High Security . | . . . . . . . . . Max Security . | . . . . . . . . . Peak Influence 60 | . . 30 . . . . 3 60 Initial 3 | . . . . . . . 3 . Average 4 | . . 1 . . . . 1 14 Influence Increases 126 | . . 31 . . . 5 . 90 Successful Hack 5 | . . . . . . 5 . . Destroy Structure 1 | . . 1 . . . . . . Partial Spotted 15 | . . . . . . . . 15 Lose Combat Pursuer 105 | . . 30 . . . . . 75 Influence Decreases 126 | . . 21 10 . . . 5 90 Entered New Map 8 | . . . 6 . . . 2 . Time Decay 85 | . . 21 4 . . . . 60 Lost Part 33 | . . . . . . . 3 30 Squads Dispatched 3 | . . . . . . . . 3 Investigation 2 | . . . . . . . . 2 Extermination . | . . . . . . . . . Reinforcement 1 | . . . . . . . . 1 Assault . | . . . . . . . . . Garrison . | . . . . . . . . . Intercept . | . . . . . . . . . Searches Triggered . | . . . . . . . . . Construction Impeded . | . . . . . . . . . Haulers Reinforced . | . . . . . . . . . Active Scanning Responses . | . . . . . . . . . Cargo Convoy Interrupts . | . . . . . . . . . Stealth | -11 -10 -10 -10 -9 -6 -5 -5 -4 --------- Run | Yrd Mat Min Sub Scr Fac Fac DSF Fac Distress Signals 1 | . . . . . . . . 1 Communications Jammed . | . . . . . . . . . Distress Signals . | . . . . . . . . . Times Spotted 26 | . 2 2 . . 1 . 1 20 Peak Tracking Total 12 | . 1 2 . . 1 . 2 12 Tactical Retreats 3 | . . 1 . . . . . 2 Traps | -11 -10 -10 -10 -9 -6 -5 -5 -4 ------- Run | Yrd Mat Min Sub Scr Fac Fac DSF Fac Traps Triggered . | . . . . . . . . . Indirectly . | . . . . . . . . . Trap Hack Attempts . | . . . . . . . . . Triggered . | . . . . . . . . . Disarmed . | . . . . . . . . . Reprogrammed . | . . . . . . . . . Reused . | . . . . . . . . . Traps Extracted . | . . . . . . . . . Installed . | . . . . . . . . . Triggered . | . . . . . . . . . Machines | -11 -10 -10 -10 -9 -6 -5 -5 -4 ---------- Run | Yrd Mat Min Sub Scr Fac Fac DSF Fac Machines Disabled . | . . . . . . . . . Max in Single Turn . | . . . . . . . . . Machines Repaired . | . . . . . . . . . Machines Dismantled . | . . . . . . . . . Machines Sabotaged . | . . . . . . . . . Overloaded Fab Kills . | . . . . . . . . . Hacking | -11 -10 -10 -10 -9 -6 -5 -5 -4 --------- Run | Yrd Mat Min Sub Scr Fac Fac DSF Fac Machines Accessed 4 | . . . . . . 1 . 3 Terminals 1 | . . . . . . 1 . . Fabricators . | . . . . . . . . . Repair Stations 1 | . . . . . . . . 1 Recycling Units 2 | . . . . . . . . 2 Scanalyzers . | . . . . . . . . . Garrison Access . | . . . . . . . . . Total Hacks 6 | . . . . . . 1 . 5 Successful 3 | . . . . . . 1 . 2 Failed 3 | . . . . . . . . 3 Catastrophic . | . . . . . . . . . Database Lockouts . | . . . . . . . . . Manual 3 | . . . . . . . . 3 Terminals 1 | . . . . . . 1 . . Fabricators . | . . . . . . . . . Repair Stations 2 | . . . . . . . . 2 Recycling Units 3 | . . . . . . . . 3 Scanalyzers . | . . . . . . . . . Garrison Access . | . . . . . . . . . Terminal Hacks 1 | . . . . . . 1 . . Open DSF 1 | . . . . . . 1 . . Fabricator Hacks . | . . . . . . . . . Repair Station Hacks . | . . . . . . . . . Recycling Unit Hacks . | . . . . . . . . . Scanalyzer . | . . . . . . . . . Garrison Access Hacks . | . . . . . . . . . Unauthorized Hacks 2 | . . . . . . . . 2 Terminals . | . . . . . . . . . Fabricators . | . . . . . . . . . Repair Stations . | . . . . . . . . . Recycling Units 2 | . . . . . . . . 2 Fedlink 2 | . . . . . . . . 2 Scanalyzers . | . . . . . . . . . Garrison Access . | . . . . . . . . . Data Cores Recovered . | . . . . . . . . . Used . | . . . . . . . . . Hacking Detections 2 | . . . . . . . . 2 Full Trace Events . | . . . . . . . . . Feedback Events . | . . . . . . . . . Feedback Blocked . | . . . . . . . . . Robot Schematics Acquired . | . . . . . . . . . Robots Built . | . . . . . . . . . Authchips . | . . . . . . . . . Time . | . . . . . . . . . Total Robot Build Rating . | . . . . . . . . . Part Schematics Acquired . | . . . . . . . . . Parts Built . | . . . . . . . . . Authchips . | . . . . . . . . . Time . | . . . . . . . . . Total Part Build Rating . | . . . . . . . . . Part Studies Acquired . | . . . . . . . . . Parts Repaired . | . . . . . . . . . Time . | . . . . . . . . . Parts Recycled . | . . . . . . . . . Recycled Matter . | . . . . . . . . . Retrieved Matter . | . . . . . . . . . Retrieved Components . | . . . . . . . . . Parts Scanalyzed . | . . . . . . . . . Part Schematics Acquired . | . . . . . . . . . Parts Damaged . | . . . . . . . . . Bothacking | -11 -10 -10 -10 -9 -6 -5 -5 -4 ------------ Run | Yrd Mat Min Sub Scr Fac Fac DSF Fac Used RIF Installer . | . . . . . . . . . Robots Hacked . | . . . . . . . . . Non-combat . | . . . . . . . . . Combat . | . . . . . . . . . Robot Hacks Applied . | . . . . . . . . . Relay Couplers Released . | . . . . . . . . . Fabnet Peak Effective % . | . . . . . . . . . Robots Rewired . | . . . . . . . . . Allies Hacked . | . . . . . . . . . Hacks Repelled . | . . . . . . . . . Allies | -11 -10 -10 -10 -9 -6 -5 -5 -4 -------- Run | Yrd Mat Min Sub Scr Fac Fac DSF Fac Total Allies . | . . . . . . . . . Largest Group . | . . . . . . . . . Highest-Rated Group . | . . . . . . . . . Highest-Rated Ally . | . . . . . . . . . Total Orders . | . . . . . . . . . Ally Attacks . | . . . . . . . . . Total Damage . | . . . . . . . . . Kills . | . . . . . . . . . Allies Corrupted . | . . . . . . . . . Allies Melted . | . . . . . . . . . Intel | -11 -10 -10 -10 -9 -6 -5 -5 -4 ------- Run | Yrd Mat Min Sub Scr Fac Fac DSF Fac Active Infowar (turns) 618 | . . 154 203 130 54 14 11 52 Terrain 15 | . . . . . . . . 15 Seismic 618 | . . 154 203 130 54 14 11 52 Robot Analysis Total . | . . . . . . . . . Derelict Logs Recovered . | . . . . . . . . . Drone Launches . | . . . . . . . . . Drone Recoveries . | . . . . . . . . . Exploration | -11 -10 -10 -10 -9 -6 -5 -5 -4 ------------- Run | Yrd Mat Min Sub Scr Fac Fac DSF Fac Turns Passed 1082 | 18 137 315 203 130 54 14 11 200 Spaces Moved 1616 | 30 80 389 189 343 105 32 30 418 Core 286 | 30 67 . . . . . . 189 Treads . | . . . . . . . . . Legs . | . . . . . . . . . Wheels . | . . . . . . . . . Hover . | . . . . . . . . . Flight 1330 | . 13 389 189 343 105 32 30 229 Fastest Speed 37 | 50 37 37 40 37 37 37 37 37 Average Speed 39 | 50 47 37 40 37 37 37 37 43 Slowest Speed 100 | 50 50 40 40 40 37 37 37 100 Overloaded Moves . | . . . . . . . . . Propulsion Burnouts . | . . . . . . . . . Robots Hopped 5 | . . 2 . 2 1 . . . Potential Cave-ins . | . . . . . . . . . Cave-ins Triggered . | . . . . . . . . . Exploration Rate (%) 23 | 3 24 75 18 34 4 1 41 15 Regions Visited 8 Branch Regions 3 Pre-discovered Areas 1 | . . . . . . . . 1 Known Exits Taken 1 | . . . . . . 1 . . Unknown Exits Taken 6 | 1 1 1 1 1 1 . . . Scrap Searched 1 | . . 1 . . . . . . Spaces Dug 2 | . . 2 . . . . . . Terrain Destroyed 2 | . . 2 . . . . . . Melee 2 | . . 2 . . . . . . Projectile . | . . . . . . . . . AOE . | . . . . . . . . . Terrain Rammed . | . . . . . . . . . Walls Destroyed . | . . . . . . . . . Machines Disabled . | . . . . . . . . . Actions | -11 -10 -10 -10 -9 -6 -5 -5 -4 --------- Run | Yrd Mat Min Sub Scr Fac Fac DSF Fac Total 2024 | 31 178 548 308 342 116 33 29 439 Wait 374 | . 94 154 116 . 4 . . 6 Move 1599 | 29 79 384 188 339 102 31 29 418 Hop 4 | . . 2 . 1 1 . . . Pick Up 10 | . 1 . . 1 4 1 . 3 Fast Attach 14 | 2 2 3 . . 5 . . 2 Attach 4 | . . . . 1 . 1 . 2 Detach 1 | . . . . . . . . 1 Swap . | . . . . . . . . . Drop 9 | . 2 1 . . . . . 6 Fire . | . . . . . . . . . Melee 8 | . . 4 4 . . . . . Ram 1 | . . . . . . . . 1 Kick . | . . . . . . . . . Crush . | . . . . . . . . . Escape Stasis . | . . . . . . . . . Rewire . | . . . . . . . . . Trap . | . . . . . . . . . Miscellaneous . | . . . . . . . . . Route ------- -11/Scrapyard -10/Materials -10/Mines -10/Subcaves -9/Scraptown -6/Factory -5/Factory -5/DSF -4/Factory History --------- Turn | Location | Event 3 | -11/Scrapyard | Discovered new exit (range 16) 19 | -11/Scrapyard | Entered Materials 20 | -10/Materials | Met a group of wandering Federalists 146 | -10/Materials | Discovered new exit (range 8) 156 | -10/Materials | Entered Mines 156 | -10/Mines | Accompanied by 6 allies 304 | -10/Mines | Build established: Mutant 356 | -10/Mines | Assembled infested the area 427 | -10/Mines | Discovered new exit (range 2) 471 | -10/Mines | Entered Subcaves 472 | -10/Subcaves | Approached by a straggling Scientist 502 | -10/Subcaves | Lost 5 allies 558 | -10/Subcaves | Shifting Twisted Machinery released Battle Cannon 563 | -10/Subcaves | Shifting Twisted Machinery released Battle Cannon 581 | -10/Subcaves | A swath of the cavern ceiling suddenly collapsed 674 | -10/Subcaves | Entered Scraptown 702 | -9/Scraptown | Visited UFD Registry 702 | -9/Scraptown | Registered with UFD as "Bladethruster" 721 | -9/Scraptown | Visited Infowarlord's Domain 724 | -9/Scraptown | Found Exp. Terrain Scan Processor 733 | -9/Scraptown | Visited Sword Containment 739 | -9/Scraptown | Visited Abandonware Association 780 | -9/Scraptown | Met Optimus 780 | -9/Scraptown | Accepted into 0bPrime 803 | -9/Scraptown | Discovered new exit (range 3) 804 | -9/Scraptown | Entered Factory 804 | -6/Factory | Evolved 8 slots: Propulsion x1, Utility x7 847 | -6/Factory | Discovered new exit (range 13) 858 | -6/Factory | Entered another Factory area 858 | -5/Factory | Evolved 2 slots: Utility x2 872 | -5/Factory | Identified exit to DSF 872 | -5/Factory | Entered DSF 878 | -5/DSF | Discovered new exit (range 16) 883 | -5/DSF | Entered Factory 883 | -4/Factory | Evolved 2 slots: Weapon x2 940 | -4/Factory | Found Exp. Terrain Scan Processor 963 | -4/Factory | Loaded intel: 8 recycling unit locations 1000 | -4/Factory | Learned location of Protoforge (-2) 1070 | -4/Factory | Core integrity fell below 50% 1083 | -4/Factory | Destroyed by exploding Fusion Modulator Last Messages --------------- 01060_ W-44 Eye sends out distress signal. 01061_ Critical hit (Burn: +37). 01069_ Slug penetrates Wall. 01069_ Penetrated by Slug. 01069_ Slug penetrates Wall. 01071_ Matter Pump disabled. 01072_ Penetrated by Slug. 01072_ Slug penetrates Door. 01072_ Exp. Terrain Scan Processor destroyed. 01072_ Penetrated by Slug. 01072_ Slug penetrates Wall. 01072_ Penetrated by Slug. 01072_ Slug penetrates Wall. 01079_ Penetrated by Slug. 01079_ Slug penetrates Wall. 01081_ Penetrated by Slug. 01081_ Slug penetrates Wall. 01083_ Fusion Modulator explodes. 01083_ P-70 Sage destroyed. 01083_ Fusion Modulator explodes. Map ----- +----------------------------------------------------+ | # #???# !#????????????????????????????? | | # ##### #????????????????????????????? | | # # #????????????????????????????? | | # # #????????????????????????????? | | # + #????????????????????????????? | | ## # #????????????????????????????? | | ?# # " " #????????????????????????????? | | ?# # "Y" #????????????????????????????? | | ## # """ ! #????????????????????????????? | | # #????????????????????????????? | | ##/#/#########????????????????????????????? | | #?# ?? #????????????????????????????? | | #?# "" #????????????????????????????? | | #?# "" #????????????????????????????? | | #?# "T #????????????????????????????? | | ### "" #????????????????????????????? | | # "" #????????????????????????????? | | # #?????##??##?????????????????? | | """" " """ ######;###;####??????????????? | | ""R"" # """ ## #??????????????? | | "" "" # """ #; #??????????????? | | ## # #; #??????????????? | | ?# h ###+## #??????????????? | | ?# """ "%" ! w #??????????????? | | ?# """ """ |%= #??????????????? | | ? """ """ [; @ #??????????????? | | ? * #??????????????? | | ? #??????????????? | | ? ######+#;;; #??????????????? | | ? ?????? ; #??????????????? | | ?? ???? ; #??????????????? | | ???#####?##?? #;;; ;########??????????????? | | ???????????? #######?????????????????????? | | ???????????# #???????????????????????????? | | ???????????# ! #???????????????????????????? | | ???????????# #???????????????????????????? | | ???????????# #???????????????????????????? | | ???????????##########????????????????????????????? | | ?????????????????????????????????????????????????? | | ?????????????????????????????????????????????????? | | ?????????????????????????????????????????????????? | | ?????????????????????????????????????????????????? | | ?????????????????????????????????????????????????? | | ?????????????????????????????????????????????????? | | ?????????????????????????????????????????????????? | | ?????????????????????????????????????????????????? | | ?????????????????????????????????????????????????? | | ?????????????????????????????????????????????????? | | ?????????????????????????????????????????????????? | | ?????????????????????????????????????????????????? | +----------------------------------------------------+ Best States ------------- Heat Dissipation 43 Energy Generation 5 Energy Capacity 100 Matter Stores 300 Matter Capacity 300 Sight Range 16 Terrain Scan Range 20 Terrain Scan Density 2010 Propulsion Shielding 33 Evasion (%) 62 Item Schematics ----------------- None Robot Schematics ------------------ None Fabricated ------------ Nothing Repaired ---------- Nothing Studied --------- None Alien Tech Used ----------------- None Achievements -------------- None Challenges ------------ None Game ------ Seed RapidTrapGun Manual? 0 Play Time 00:11:08 Cumulative 383.5 hours Start 2025.11.07 @ 13:24:49 End 2025.11.07 @ 13:33:54 Sessions 1 Manual Loads 0 Difficulty Rogue Special Mode None Game No. 350 Rogue 350 Adventurer 0 Explorer 0 Win Type - Total 3 Types 2/1/0/0/0/0/0/0/0/0 Lore% 84 Gallery% 83 Achievement% 61 Wizard Run 0 Options --------- Layout 1 ASCII 0 Keyboard 0 Movement Numpad Keybinds 0 Fullscreen 1 Font 24/Smallcaps Map View 50x35 Zoom Use 0% Tactical HUD 1 Map Filters NONE Filters NONE Steam 1 RUN: c065b073-5070-4763-a2c4-2f0ed1917f22